bitfinex/quotes_SOLUSD_20251013
["timestamp","ask_amount","ask_price","bid_price","bid_amount"]
[1760343490555,20.37887755,197.49,197.46,0.91]
[1760343490754,20.37887755,197.49,197.46,5.9742564]
[1760343491196,20.68999999,197.57,197.46,17.92504845]
[1760343491484,10.87647521,197.54,197.49,6.40543252]
[1760343491791,6.40543252,197.52,197.47,0.71]
[1760343492304,6.40543252,197.51,197.47,0.71]
[1760343492463,6.40543252,197.51,197.48,0.71]
[1760343492972,6.40543252,197.51,197.48,5.77378529]
[1760343493283,6.40543252,197.51,197.48,5.77379712]
[1760343493473,0.10589104,197.52,197.49,0.71]
[1760343493474,6.51132356,197.52,197.49,0.71]
[1760343493986,6.51132356,197.52,197.48,25.06379711]
[1760343494165,6.51132356,197.52,197.48,5.06379712]
[1760343494366,6.40543252,197.51,197.48,5.06379712]
[1760343494578,6.40543252,197.51,197.46,5.97408923]
[1760343494761,6.40543252,197.49,197.46,5.26408923]
[1760343495391,6.40543252,197.48,197.46,5.26408923]
[1760343496192,6.40543252,197.48,197.46,0.2]
[1760343496387,6.40543252,197.47,197.46,0.2]
[1760343496597,17.28190773,197.47,197.46,0.2]
[1760343497793,20.8,197.5,197.46,0.2]
[1760343497970,27.20543252,197.51,197.46,5.94422535]
[1760343498177,6.40543252,197.5,197.46,5.26422535]
[1760343498498,6.40543252,197.49,197.46,5.26422538]
[1760343498793,20.8,197.51,197.46,5.26422538]
[1760343499094,10.87647521,197.51,197.47,20.67999999]
[1760343499299,10.87647521,197.51,197.48,0.68]
[1760343499999,10.87647521,197.51,197.47,19.99999999]
[1760343500899,17.28190773,197.51,197.46,25.26422537]
[1760343501195,6.40543252,197.5,197.46,5.26422538]
[1760343501495,6.40543252,197.49,197.46,5.26422538]
[1760343502591,6.40543252,197.5,197.46,25.26422537]
[1760343503200,6.40543252,197.5,197.46,5.26422538]
[1760343503396,6.40543252,197.49,197.46,0.2]
[1760343503697,17.28190773,197.47,197.46,0.2]
[1760343511692,10.87647521,197.47,197.46,0.2]
[1760343512004,6.40543252,197.5,197.46,5.94431682]
[1760343512188,27.20543252,197.5,197.46,5.94431682]
[1760343512498,27.20543252,197.5,197.47,0.68]
[1760343512704,6.40543252,197.5,197.47,0.68]
[1760343513001,0.10589104,197.52,197.48,0.68]
[1760343513212,0.10589104,197.52,197.48,20.67999999]
[1760343513213,0.1096581,197.49,197.48,20.67999999]
[1760343514382,0.1096581,197.49,197.48,27.08543251]
[1760343515699,0.1096581,197.49,197.48,32.14923643]
[1760343517799,0.09527906,197.5,197.49,19.99999999]
[1760343518000,0.09523899,197.51,197.5,19.99999999]
[1760343518307,0.09523899,197.51,197.5,27.08543251]
[1760343518508,0.10053723,197.53,197.51,19.99999999]
[1760343518699,0.09944552,197.57,197.53,19.99999999]
[1760343519005,0.09944552,197.57,197.53,26.40543251]
[1760343519212,0.09944552,197.57,197.53,25.06252213]
[1760343519417,6.50111157,197.56,197.52,5.0627446]
[1760343519598,0.09567905,197.56,197.53,19.99999999]
[1760343520301,0.09567905,197.56,197.53,20.67999999]
[1760343520881,0.09567905,197.56,197.53,19.99999999]
[1760343521299,0.09567905,197.56,197.53,32.14795465]
[1760343521608,0.09567905,197.56,197.53,28.30369842]
[1760343522290,2.66125001,197.54,197.5,5.06329113]
[1760343522489,3.18117629,197.53,197.5,5.06329113]
[1760343522799,2.66125001,197.54,197.5,25.06329112]
[1760343522990,0.10007372,197.54,197.52,19.99999999]
[1760343523910,0.10007372,197.54,197.52,25.06272021]
[1760343525613,0.10007372,197.54,197.52,5.06272022]
[1760343525798,6.50457956,197.54,197.5,5.7830617]
[1760343526107,6.40450584,197.53,197.5,5.7830617]
[1760343526492,6.40450584,197.53,197.5,5.0630617]
[1760343526689,6.40450584,197.51,197.46,0.9]
[1760343526889,6.40450584,197.5,197.48,19.99999999]
[1760343527105,6.40450584,197.51,197.48,19.99999999]
[1760343527488,20.8,197.51,197.49,0.7]
[1760343527895,20.8,197.51,197.48,19.99999999]
[1760343528091,20.90007372,197.54,197.51,5.06303478]
[1760343528391,0.10007372,197.54,197.52,20.69999999]
[1760343528596,0.10007372,197.54,197.52,19.99999999]
[1760343529291,0.10007372,197.54,197.53,20.69999999]
[1760343529793,0.10007372,197.54,197.53,27.10450583]
[1760343529986,0.10007372,197.54,197.53,19.99999999]
[1760343530202,0.10007372,197.54,197.53,25.76252213]
[1760343530399,0.10007372,197.54,197.53,25.06252213]
[1760343530795,0.10007372,197.54,197.53,25.76252213]
[1760343531910,6.50457956,197.54,197.53,19.99999999]
[1760343532217,10.87647521,197.53,197.5,19.99999999]
[1760343532708,0.10007372,197.54,197.52,19.99999999]
[1760343533088,0.09396215,197.53,197.52,19.99999999]
[1760343533594,0.09396215,197.53,197.51,0.7]
[1760343533802,0.09396215,197.53,197.52,19.99999999]
[1760343534005,0.09396215,197.53,197.52,25.06277844]
[1760343534410,0.09396215,197.53,197.52,5.06277845]
[1760343534604,0.09396215,197.53,197.52,25.06277844]
[1760343534799,0.09396215,197.53,197.52,5.06277845]
[1760343534998,0.09396215,197.53,197.52,25.06277844]
[1760343535211,0.09396215,197.53,197.52,32.16728428]
[1760343536421,0.09396215,197.53,197.52,25.76277844]
[1760343536821,0.09396215,197.53,197.52,25.06277844]
[1760343536990,0.09396215,197.53,197.52,19.99999999]
[1760343537713,0.09396215,197.53,197.5,5.06329113]
[1760343537938,0.09396215,197.53,197.52,19.99999999]
[1760343538505,10.87647521,197.52,197.47,5.06406036]
[1760343538708,6.40450584,197.49,197.46,20.19999999]
[1760343538918,6.40450584,197.48,197.46,5.26429448]
[1760343539228,27.20450584,197.49,197.46,25.26429447]
[1760343539407,27.20450584,197.49,197.46,5.26429448]
[1760343539610,27.20450584,197.49,197.46,25.26429447]
[1760343539813,20.8,197.49,197.46,25.26429447]
[1760343541517,27.20450584,197.49,197.46,25.26429447]
[1760343542220,7.02450584,197.48,197.46,0.2]
[1760343542521,17.28098105,197.47,197.46,0.2]
[1760343543620,11.49647521,197.47,197.46,0.2]
[1760343543918,17.90098105,197.47,197.46,0.2]
[1760343544416,22.96504141,197.47,197.46,0.2]
[1760343545713,31.67647521,197.43,197.38,0.2]
[1760343545925,10.87647521,197.42,197.38,0.2]
[1760343546225,10.87647521,197.39,197.38,0.2]
[1760343546610,17.90098105,197.39,197.38,0.2]
[1760343546808,22.96709382,197.39,197.38,0.2]
[1760343547019,27.09375893,197.39,197.38,0.2]
[1760343547323,20.8,197.32,197.27,20.89999999]
[1760343547517,20.8,197.32,197.27,25.96915668]
[1760343547518,17.28098105,197.31,197.27,25.96915668]
[1760343547715,17.28098105,197.31,197.29,19.99999999]
[1760343548020,17.28098105,197.31,197.28,5.268864]
[1760343548423,10.87647521,197.31,197.28,5.268864]
[1760343548623,10.87647521,197.31,197.29,25.06866871]
[1760343548812,10.87647521,197.31,197.3,5.96842372]
[1760343549015,10.87647521,197.31,197.3,0.2]
[1760343550212,20.8,197.35,197.31,19.99999999]
[1760343550428,20.8,197.35,197.32,0.7]
[1760343550632,31.67647521,197.36,197.32,5.76787546]
[1760343552030,10.87647521,197.38,197.32,5.06787546]
[1760343552236,10.87647521,197.38,197.34,19.99999999]
[1760343552425,9.55968499,197.37,197.33,19.99999999]
[1760343552606,10.87647521,197.33,197.3,20.19999999]
[1760343552962,9.55968499,197.31,197.3,0.2]
[1760343553132,9.65664812,197.31,197.3,0.2]
[1760343556209,21.15312333,197.31,197.3,0.2]
[1760343556526,16.66160518,197.31,197.3,0.2]
[1760343556731,21.15312333,197.31,197.3,0.2]
[1760343557234,26.22129017,197.31,197.3,0.2]
[1760343558811,16.66160518,197.31,197.3,0.2]
[1760343559141,16.66160518,197.31,197.3,35.5381087]
[1760343559142,0.09696313,197.31,197.3,35.5381087]
[1760343559350,0.09461787,197.33,197.32,19.99999999]
[1760343559637,0.09461787,197.33,197.32,34.62759497]
[1760343559841,0.09461787,197.33,197.32,35.33759497]
[1760343560041,1e-08,197.34,197.32,35.33759497]
[1760343560251,1e-08,197.34,197.33,30.26968498]
[1760343560543,0.1010892,197.4,197.35,19.99999999]
[1760343560733,0.1010892,197.4,197.38,29.55968498]
[1760343561128,0.1010892,197.4,197.39,10.26968499]
[1760343561318,0.1010892,197.4,197.39,30.26968498]
[1760343561636,0.1010892,197.4,197.39,35.33579775]
[1760343562232,0.1010892,197.4,197.39,25.77611276]
[1760343562534,0.1010892,197.4,197.39,35.33579775]
[1760343564148,0.67,197.56,197.48,19.99999999]
[1760343564323,10.22968499,197.56,197.51,19.99999999]
[1760343564658,10.87647521,197.55,197.51,29.55968498]
[1760343565021,0.67,197.6,197.52,10.26968499]
[1760343565241,9.55968499,197.58,197.52,30.26968498]
[1760343565440,20.8,197.55,197.52,29.55968498]
[1760343565943,0.67,197.6,197.55,5.06200961]
[1760343565944,10.22968499,197.6,197.55,5.06200961]
[1760343566147,20.8,197.57,197.55,5.06200961]
[1760343566512,3.31588443,197.64,197.56,0.71]
[1760343566726,9.55968499,197.63,197.57,9.55968499]
[1760343567048,10.87647521,197.63,197.59,19.99999999]
[1760343567554,0.67,197.66,197.59,19.99999999]
[1760343567718,0.1,197.67,197.61,9.55968499]
[1760343567719,10.32968499,197.67,197.61,9.55968499]
[1760343567918,10.87647521,197.66,197.61,14.61996387]
[1760343568326,10.87647521,197.66,197.61,34.61996386]
[1760343568635,10.87647521,197.64,197.61,19.99999999]
[1760343568844,10.87647521,197.64,197.57,19.99999999]
[1760343568845,10.87647521,197.61,197.57,19.99999999]
[1760343569023,20.4361602,197.61,197.57,0.71]
[1760343569229,20.4361602,197.61,197.56,19.99999999]
[1760343569536,20.4361602,197.61,197.56,20.70999999]
[1760343569922,10.87647521,197.61,197.56,35.33131903]
[1760343570240,10.87647521,197.61,197.59,19.99999999]
[1760343572037,20.8,197.64,197.6,10.26968499]
[1760343572238,0.1,197.67,197.64,19.99999999]
[1760343572432,0.1,197.67,197.65,9.55968499]
[1760343572748,0.1,197.67,197.66,9.55968499]
[1760343572954,0.1,197.67,197.66,25.76919254]
[1760343573246,0.19938622,197.67,197.66,30.26968498]
[1760343575752,1e-08,197.67,197.66,30.26968498]
[1760343575925,1e-08,197.68,197.67,25.0589366]
[1760343576240,1e-08,197.68,197.67,44.88830658]
[1760343576753,1e-08,197.68,197.67,35.32862159]
[1760343583060,1e-08,197.68,197.67,25.7689366]
[1760343583255,1e-08,197.68,197.67,35.32862159]
[1760343585349,0.09483681,197.75,197.73,19.99999999]
[1760343585547,0.09483681,197.75,197.74,19.99999999]
[1760343585746,0.09483681,197.75,197.74,30.21968498]
[1760343586733,0.09483681,197.75,197.74,35.27683072]
[1760343587063,0.09483681,197.75,197.74,25.05714573]
[1760343587440,0.09483681,197.75,197.74,29.55968498]
[1760343587642,0.09483681,197.75,197.74,34.61683072]
[1760343588139,0.09483681,197.75,197.74,25.05714573]
[1760343588349,0.09483681,197.75,197.74,19.99999999]
[1760343588961,0.09483681,197.75,197.74,25.05714573]
[1760343589537,0.09483681,197.75,197.74,34.61683072]
[1760343589741,0.09483681,197.75,197.74,35.31683072]
[1760343589939,0.09483681,197.75,197.74,19.99999999]
[1760343590150,0.81483681,197.75,197.74,25.05714573]
[1760343590352,0.09483681,197.75,197.74,25.05714573]
[1760343590548,0.09483681,197.75,197.74,34.61683072]
[1760343590954,0.09483681,197.75,197.74,29.55968498]
[1760343591153,0.09483681,197.75,197.74,34.61683072]
[1760343593043,0.09483681,197.75,197.74,35.31683072]
[1760343593250,0.19599498,197.75,197.74,35.31683072]
[1760343593847,0.19599498,197.75,197.74,25.75714573]
[1760343594071,0.19599498,197.75,197.74,35.31683072]
[1760343594555,0.10115817,197.75,197.74,34.61683072]
[1760343595566,0.10115817,197.75,197.74,25.05714573]
[1760343596262,0.82115817,197.75,197.71,19.99999999]
[1760343596565,0.72,197.74,197.73,19.99999999]
[1760343597365,0.10115817,197.75,197.73,19.99999999]
[1760343597571,0.72,197.74,197.73,19.99999999]
[1760343598269,0.72,197.74,197.71,25.05776208]
[1760343598471,0.72,197.74,197.72,19.99999999]
[1760343598662,0.72,197.74,197.73,19.99999999]
[1760343598969,0.72,197.74,197.69,25.05842331]
[1760343599175,9.66084316,197.75,197.69,34.6181083]
[1760343599470,10.87647521,197.74,197.69,34.6181083]
[1760343599674,0.72,197.73,197.71,19.99999999]
[1760343599971,0.72,197.73,197.69,34.6181083]
[1760343600171,0.72,197.73,197.71,19.99999999]
[1760343600366,10.97763338,197.75,197.72,19.99999999]
[1760343600573,0.72,197.74,197.69,19.99999999]
[1760343600872,0.72,197.74,197.7,29.55968498]
[1760343601071,0.72,197.74,197.72,19.99999999]
[1760343601447,0.72,197.74,197.71,34.61750913]
[1760343601675,0.72,197.74,197.71,14.61750914]
[1760343601972,0.10115817,197.75,197.73,29.55968498]
[1760343602159,0.10115817,197.75,197.74,30.25968498]
[1760343603160,0.10115817,197.75,197.74,35.31683072]
[1760343607776,0.10115817,197.75,197.74,25.75714573]
[1760343608078,0.10115817,197.75,197.74,35.31683072]
[1760343608680,0.10115817,197.75,197.74,34.61683072]
[1760343609066,0.10115817,197.75,197.74,115.01683072]
[1760343609868,0.10115817,197.75,197.74,115.71683072]
[1760343611479,0.10115817,197.75,197.74,115.01683072]
[1760343612375,0.82115817,197.75,197.74,80.4]
[1760343612573,0.82115817,197.75,197.7,19.99999999]
[1760343612763,0.82115817,197.75,197.71,9.55968499]
[1760343612959,0.72,197.74,197.7,19.99999999]
[1760343613274,0.1003975,197.72,197.7,19.99999999]
[1760343613600,0.1003975,197.72,197.71,19.99999999]
[1760343613893,0.8203975,197.72,197.71,19.99999999]
[1760343614090,0.1003975,197.72,197.71,26.39347945]
[1760343614263,0.1003975,197.72,197.71,27.09347945]
[1760343614758,0.0987826,197.73,197.72,19.99999999]
[1760343614960,0.10769735,197.74,197.73,19.99999999]
[1760343615172,0.09748845,197.79,197.76,19.99999999]
[1760343615383,1e-08,197.77,197.76,32.78695891]
[1760343615566,0.09748845,197.79,197.77,19.99999999]
[1760343615766,0.09748845,197.79,197.77,26.39347945]
[1760343615985,0.09748845,197.79,197.77,27.09347945]
[1760343616281,0.09748845,197.79,197.78,19.99999999]
[1760343616485,0.09748845,197.79,197.78,27.09347945]
[1760343617182,1e-08,197.79,197.78,27.09347945]
[1760343617569,1e-08,197.8,197.79,19.99999999]
[1760343617762,0.1,197.88,197.86,19.99999999]
[1760343617959,0.1,197.88,197.87,26.39347945]
[1760343618577,0.77,197.88,197.87,26.39347945]
[1760343618789,0.1,197.88,197.87,26.39347945]
[1760343619371,0.1,197.88,197.87,31.44730266]
[1760343619989,0.1,197.88,197.86,19.99999999]
[1760343619990,0.77,197.88,197.86,19.99999999]
[1760343620199,0.67,197.87,197.86,19.99999999]
[1760343620686,0.1,197.88,197.86,19.99999999]
[1760343620993,0.77,197.88,197.87,19.99999999]
[1760343621293,0.77,197.88,197.86,6.39347946]
[1760343621294,0.77,197.88,197.86,19.99999999]
[1760343622394,0.1,197.88,197.86,26.39347945]
[1760343622575,0.1,197.88,197.87,26.39347945]
[1760343623963,0.1,197.88,197.87,32.15730266]
[1760343626411,0.1,197.88,197.87,31.44730266]
[1760343626899,0.1,197.88,197.83,19.99999999]
[1760343626900,0.77,197.88,197.83,19.99999999]
[1760343627104,0.67,197.87,197.83,25.05470569]
[1760343627398,0.67,197.87,197.83,19.99999999]
[1760343627399,0.67,197.86,197.83,19.99999999]
[1760343627577,17.93995467,197.85,197.82,19.99999999]
[1760343627779,0.67,197.84,197.83,19.99999999]
[1760343628993,0.67,197.84,197.82,19.99999999]
[1760343629387,0.67,197.83,197.82,19.99999999]
[1760343629691,17.93995467,197.83,197.82,19.99999999]
[1760343629877,11.54647521,197.83,197.82,19.99999999]
[1760343630072,17.93995467,197.83,197.79,19.99999999]
[1760343630280,10.87647521,197.8,197.75,5.05689001]
[1760343630491,10.87647521,197.77,197.73,19.99999999]
[1760343630693,0.67,197.76,197.72,31.45090392]
[1760343630897,0.67,197.76,197.73,19.99999999]
[1760343631199,10.87647521,197.77,197.75,19.99999999]
[1760343631498,20.8,197.8,197.77,19.99999999]
[1760343631702,20.8,197.8,197.78,19.99999999]
[1760343632090,10.87647521,197.8,197.78,19.99999999]
[1760343632301,11.54647521,197.8,197.78,19.99999999]
[1760343632480,10.87647521,197.8,197.78,19.99999999]
[1760343632682,31.67647521,197.8,197.77,31.4498031]
[1760343633002,31.67647521,197.83,197.8,19.99999999]
[1760343633188,0.10935075,197.81,197.8,26.39347945]
[1760343633391,0.10935075,197.81,197.8,27.10347945]
[1760343633913,0.10935075,197.81,197.8,32.15909117]
[1760343634710,0.09441616,197.84,197.83,19.99999999]
[1760343634905,0.10888299,197.85,197.84,19.99999999]
[1760343635101,0.10888299,197.85,197.84,20.70999999]
[1760343635284,0.10888299,197.85,197.84,27.10347945]
[1760343635792,0.10888299,197.85,197.84,25.76458955]
[1760343635989,0.10888299,197.85,197.84,19.99999999]
[1760343636202,0.10888299,197.85,197.84,31.44806901]
[1760343637111,0.10888299,197.85,197.84,19.99999999]
[1760343637415,0.10888299,197.85,197.84,26.39347945]
[1760343638227,0.10888299,197.85,197.84,32.15806901]
[1760343640091,0.10888299,197.85,197.84,31.44806901]
[1760343642517,0.77888299,197.85,197.82,6.39347946]
[1760343642823,0.77888299,197.85,197.83,19.99999999]
[1760343643500,10.87647521,197.84,197.82,26.39347945]
[1760343643820,0.67,197.84,197.82,19.99999999]
[1760343644321,0.67,197.84,197.82,26.39347945]
[1760343644520,0.67,197.84,197.82,19.99999999]
[1760343644694,11.54647521,197.83,197.79,5.05562925]
[1760343644896,10.87647521,197.81,197.77,6.39347946]
[1760343645203,10.87647521,197.81,197.8,26.39347945]
[1760343646002,10.87647521,197.81,197.8,6.39347946]
[1760343646203,10.87647521,197.81,197.8,26.39347945]
[1760343646500,10.87647521,197.81,197.8,19.99999999]
[1760343646706,11.54647521,197.81,197.79,19.99999999]
[1760343646907,10.87647521,197.79,197.76,6.39347946]
[1760343647219,11.54647521,197.79,197.74,5.05714574]
[1760343647414,5.72510059,197.82,197.77,26.39347945]
[1760343647626,10.87647521,197.8,197.77,26.39347945]
[1760343647807,10.87647521,197.78,197.77,26.39347945]
[1760343648003,5.05486842,197.83,197.77,26.39347945]
[1760343648209,10.87647521,197.82,197.79,6.39347946]
[1760343648407,0.67,197.81,197.76,19.99999999]
[1760343648725,10.87647521,197.79,197.77,19.99999999]
[1760343649414,5.72528941,197.82,197.77,19.99999999]
[1760343649616,10.87647521,197.8,197.76,31.45011167]
[1760343649810,0.67,197.79,197.76,19.99999999]
[1760343650016,10.87647521,197.77,197.73,19.99999999]
[1760343650204,11.54647521,197.77,197.73,19.99999999]
[1760343650399,11.54647521,197.77,197.73,6.39347946]
[1760343650623,11.54647521,197.77,197.73,31.45083124]
[1760343650824,11.54647521,197.77,197.74,19.99999999]
[1760343651006,11.54647521,197.77,197.75,19.99999999]
[1760343651214,11.54647521,197.77,197.73,31.45083124]
[1760343651413,11.54647521,197.77,197.74,19.99999999]
[1760343651707,0.67,197.76,197.72,31.45104232]
[1760343652026,20.8,197.8,197.75,6.39347946]
[1760343652215,31.67647521,197.8,197.79,6.39347946]
[1760343653311,31.77595445,197.8,197.79,6.39347946]
[1760343654317,0.09947924,197.8,197.79,32.16934678]
[1760343657525,0.09947924,197.8,197.79,31.44934678]
[1760343658041,0.09947924,197.8,197.79,32.16934678]
[1760343664102,1e-08,197.8,197.79,32.16934678]
[1760343664528,1e-08,197.8,197.79,112.56934678]
[1760343664921,1e-08,197.8,197.79,106.17586732]
[1760343665241,1e-08,197.8,197.79,112.56934678]
[1760343666226,1e-08,197.8,197.79,25.05586732]
[1760343666416,0.67000001,197.8,197.78,19.99999999]
[1760343666730,0.67000001,197.8,197.78,6.39347946]
[1760343667025,0.67000001,197.8,197.79,19.99999999]
[1760343667026,1e-08,197.8,197.79,19.99999999]
[1760343667423,0.67000001,197.8,197.79,19.99999999]
[1760343667728,10.87647521,197.79,197.76,19.99999999]
[1760343667933,0.67,197.78,197.75,11.45035638]
[1760343668106,0.67,197.77,197.75,11.45035638]
[1760343668626,0.67,197.77,197.74,5.05714108]
[1760343668826,0.67,197.77,197.75,19.99999999]
[1760343669027,0.67,197.77,197.75,26.39347945]
[1760343669227,15.93214576,197.8,197.76,19.99999999]
[1760343669412,0.67,197.79,197.76,19.99999999]
[1760343669612,0.67,197.79,197.75,6.39347946]
[1760343669613,31.67647521,197.77,197.74,19.99999999]
[1760343669813,20.8,197.77,197.76,26.39347945]
[1760343671534,20.8,197.77,197.76,19.99999999]
[1760343671916,10.87647521,197.76,197.73,31.45085979]
[1760343672226,11.54647521,197.76,197.72,19.99999999]
[1760343672428,31.67647521,197.74,197.72,19.99999999]
[1760343672619,31.67647521,197.74,197.73,19.99999999]
[1760343673223,31.78303022,197.74,197.72,6.39347946]
[1760343673537,31.78303022,197.74,197.72,19.99999999]
[1760343673538,32.45303022,197.74,197.72,19.99999999]
[1760343673831,32.45303022,197.74,197.71,6.39347946]
[1760343673832,0.67,197.73,197.71,19.99999999]
[1760343674140,10.87647521,197.72,197.71,26.39347945]
[1760343674319,20.8,197.73,197.71,26.39347945]
[1760343674526,20.8,197.73,197.72,26.39347945]
[1760343674910,0.10655501,197.74,197.72,27.11347945]
[1760343675120,0.10655501,197.74,197.73,27.11347945]
[1760343675434,0.10655501,197.74,197.73,34.57694504]
[1760343676730,0.76655501,197.74,197.72,19.99999999]
[1760343676930,0.76655501,197.74,197.71,19.99999999]
[1760343677241,0.76655501,197.74,197.73,19.99999999]
[1760343677630,0.10655501,197.74,197.73,19.99999999]
[1760343679343,0.10655501,197.74,197.73,30.20954354]
[1760343679545,0.10655501,197.74,197.73,115.66694504]
[1760343681145,0.10655501,197.74,197.73,105.45740149]
[1760343681443,0.10655501,197.74,197.73,109.91954354]
[1760343681841,32.44303022,197.74,197.73,19.99999999]
[1760343682134,37.50020701,197.74,197.73,19.99999999]
[1760343682521,47.01975056,197.74,197.68,19.99999999]
[1760343682721,10.17954355,197.73,197.69,19.99999999]
[1760343682926,10.87647521,197.71,197.69,19.99999999]
[1760343683347,10.87647521,197.71,197.7,19.99999999]
[1760343684229,31.67647521,197.71,197.7,19.99999999]
[1760343685045,10.87647521,197.7,197.68,34.57810428]
[1760343685244,10.87647521,197.7,197.69,19.99999999]
[1760343686146,16.59476652,197.7,197.65,19.99999999]
[1760343686352,41.19601876,197.68,197.64,19.99999999]
[1760343686539,10.87647521,197.66,197.63,19.99999999]
[1760343686858,10.87647521,197.66,197.65,19.99999999]
[1760343687047,10.87647521,197.66,197.63,9.51954355]
[1760343687048,10.87647521,197.66,197.64,19.99999999]
[1760343687347,10.87647521,197.66,197.62,25.05998175]
[1760343687527,10.87647521,197.66,197.63,19.99999999]
[1760343687920,11.53647521,197.66,197.63,19.99999999]
[1760343688124,10.87647521,197.66,197.64,19.99999999]
[1760343688349,10.87647521,197.66,197.65,19.99999999]
[1760343688933,11.53647521,197.66,197.63,19.99999999]
[1760343689234,11.53647521,197.66,197.62,25.06018908]
[1760343689654,10.87647521,197.64,197.63,19.99999999]
[1760343689954,31.67647521,197.62,197.61,0.2]
[1760343691251,32.33647521,197.62,197.61,0.2]
[1760343691554,37.39669178,197.62,197.61,0.2]
[1760343692035,46.91623533,197.62,197.61,0.2]
[1760343692651,37.39669178,197.62,197.61,0.2]
[1760343693152,37.49242488,197.62,197.61,0.2]
[1760343693330,31.77220831,197.62,197.61,0.2]
[1760343693662,37.49242488,197.62,197.61,0.2]
[1760343694332,47.01196843,197.62,197.61,0.2]
[1760343694855,29.88220831,197.62,197.61,15.47001619]
[1760343695158,0.09720841,197.65,197.63,19.99999999]
[1760343695347,0.10844885,197.66,197.65,19.99999999]
[1760343695534,0.66,197.76,197.65,39.03908709]
[1760343695735,0.66,197.76,197.66,39.03908709]
[1760343695950,1e-08,197.67,197.66,39.03908709]
[1760343696146,1e-08,197.67,197.66,19.99999999]
[1760343696351,1e-08,197.67,197.66,29.51954354]
[1760343697353,1e-08,197.67,197.66,34.57873609]
[1760343699744,1e-08,197.67,197.66,25.05919254]
[1760343699948,0.66000001,197.67,197.66,29.51954354]
[1760343700148,1e-08,197.67,197.66,29.51954354]
[1760343700359,1e-08,197.67,197.66,34.57873609]
[1760343701259,0.10174695,197.7,197.68,19.99999999]
[1760343701441,0.10174695,197.7,197.68,39.03908709]
[1760343701960,0.10174695,197.7,197.68,44.09776778]
[1760343702252,0.10174695,197.7,197.69,19.99999999]
[1760343702467,0.10174695,197.7,197.69,29.51954354]
[1760343704042,0.10174695,197.7,197.69,34.57796834]
[1760343704244,0.66,197.81,197.76,19.99999999]
[1760343704558,10.87647521,197.8,197.79,9.51954355]
[1760343704754,10.87647521,197.8,197.78,29.51954354]
[1760343704955,11.55647521,197.79,197.78,29.51954354]
[1760343705154,10.87647521,197.79,197.78,29.51954354]
[1760343705466,11.55647521,197.79,197.78,29.51954354]
[1760343705761,0.68,197.79,197.78,29.51954354]
[1760343706955,31.67647521,197.8,197.79,19.99999999]
[1760343707264,32.37647521,197.8,197.79,29.51954354]
[1760343708568,37.43208693,197.8,197.79,19.99999999]
[1760343708871,10.87647521,197.79,197.78,19.99999999]
[1760343709064,11.57647521,197.79,197.78,29.51954354]
[1760343709257,11.57647521,197.79,197.78,19.99999999]
[1760343709769,11.57647521,197.79,197.77,19.99999999]
[1760343709770,16.63234254,197.79,197.77,19.99999999]
[1760343709973,10.87647521,197.77,197.74,29.51954354]
[1760343710174,0.7,197.76,197.74,19.99999999]
[1760343710544,0.7,197.75,197.74,19.99999999]
[1760343711964,10.87647521,197.74,197.73,19.99999999]
[1760343712169,11.57647521,197.74,197.72,19.99999999]
[1760343712471,11.57647521,197.73,197.71,19.99999999]
[1760343712765,0.7,197.72,197.71,19.99999999]
[1760343712965,0.7,197.72,197.68,29.51954354]
[1760343713265,0.7,197.71,197.68,29.51954354]
[1760343713464,0.7,197.71,197.7,19.99999999]
[1760343713868,0.7,197.71,197.69,19.99999999]
[1760343714070,0.7,197.71,197.7,19.99999999]
[1760343714474,0.7,197.71,197.69,19.99999999]
[1760343714675,0.7,197.71,197.7,19.99999999]
[1760343714966,0.09245691,197.72,197.71,19.99999999]
[1760343715158,20.89245691,197.72,197.71,29.51954354]
[1760343715365,21.59245691,197.72,197.71,29.51954354]
[1760343715672,20.89245691,197.72,197.71,29.51954354]
[1760343715865,0.09245691,197.72,197.71,29.51954354]
[1760343716957,0.09245691,197.72,197.71,34.57745664]
[1760343722579,1e-08,197.73,197.72,19.99999999]
[1760343722760,1e-08,197.73,197.72,109.91954354]
[1760343723289,1e-08,197.73,197.72,114.97720083]
[1760343723680,1e-08,197.76,197.75,19.99999999]
[1760343723871,1e-08,197.76,197.75,109.91954354]
[1760343724070,1e-08,197.78,197.77,19.99999999]
[1760343724270,0.10908235,197.8,197.78,19.99999999]
[1760343724271,1e-08,197.79,197.78,19.99999999]
[1760343724470,1e-08,197.8,197.79,19.99999999]
[1760343724672,1e-08,197.8,197.79,29.51954354]
[1760343724977,0.7,197.87,197.8,19.99999999]
[1760343725177,0.7,197.84,197.8,29.51954354]